[Event "Prague Festival Futures 2024"]
[Site "Prague"]
[Date "2024.02.27"]
[Round "1.1"]
[White "Peglau, Paul David"]
[Black "Siskou, Evangelia"]
[Result "1/2-1/2"]
[ECO "D05"]
[WhiteElo "1764"]
[BlackElo "1680"]
[Annotator "NA RC"]
[PlyCount "95"]
[EventDate "2024.02.22"]
[EventType "tourn"]
[EventCountry "CZE"]
[SourceTitle "playchess.com"]
[Source "ChessBase"]
[SourceQuality "1"]
[TimeControl "40/5400+30:1800+30"]

1. d4 {[%emt 0:00:03]} Nf6 {[%emt 0:00:18]} 2. c4 {[%emt 0:00:06]} e6 {[%emt 0:00:16]} 3. Nf3 {[%emt 0:00:07]} d5 {[%emt 0:00:16]} 4. e3 {[%emt 0:00:16]} Be7 {[%emt 0:00:20]} 5. Nbd2 {[%emt 0:00:07]} O-O {[%emt 0:01:21]} 6. b3 {[%emt 0:00:11]} b6 {[%emt 0:00:42]} 7. Bb2 {[%emt 0:00:11]} Bb7 {[%emt 0:00:36]} 8. Bd3 {[%emt 0:00:24]} Nbd7 {[%emt 0:00:25]} 9. O-O {[%emt 0:00:30]} Rc8 {[%emt 0:02:12]} 10. Qe2 {[%emt 0:00:42]} c5 {[%emt 0:05:53]} 11. Rac1 {[%emt 0:01:06]} Bd6 {[%emt 0:02:44]} 12. Ne5 {[%emt 0:02:28]} Qe7 {[%emt 0:02:22]} 13. cxd5 {[%emt 0:03:06]} exd5 {[%emt 0:02:34]} 14. Nxd7 {[%emt 0:12:13]} Nxd7 {[%emt 0:04:43]} 15. dxc5 {[%emt 0:02:55]} bxc5 {[%emt 0:06:12]} 16. Rfd1 {[%emt 0:07:10]} f5 {[%emt 0:07:21]} 17. Nf3 {[%emt 0:05:19]} Ne5 {[%emt 0:09:29]} 18. Nxe5 {[%emt 0:05:41]} Bxe5 {[%emt 0:00:08]} 19. Bxe5 {[%emt 0:01:24]} Qxe5 {[%emt 0:00:08]} 20. Ba6 {[%emt 0:01:50]} Bxa6 {[%emt 0:03:42]} 21. Qxa6 {[%emt 0:00:41]} f4 {[%emt 0:10:44]} 22. exf4 {[%emt 0:03:54]} Qxf4 {[%emt 0:00:21]} 23. Rc2 {[%emt 0:01:43]} Qf5 {[%emt 0:05:17]} 24. Rcd2 {[%emt 0:03:42]} Qf7 {[%emt 0:02:34]} 25. f3 {[%emt 0:04:27]} d4 {[%emt 0:05:35]} 26. Rc2 {[%emt 0:13:20]} Rc7 {[%emt 0:06:49]} 27. Qd6 {[%emt 0:06:46]} Rfc8 {[%emt 0:02:18]} 28. b4 {[%emt 0:04:17]} cxb4 {[%emt 0:10:04]} 29. Rxc7 {[%emt 0:01:04]} Qxc7 {[%emt 0:00:10]} 30. Qxb4 {[%emt 0:02:52]} Qb6 {[%emt 0:05:09]} 31. Qxb6 {[%emt 0:04:24]} axb6 {[%emt 0:00:02]} 32. Rxd4 {[%emt 0:01:24]} Rc1+ {[%emt 0:01:02]} 33. Kf2 {[%emt 0:00:05]} Rc2+ {[%emt 0:00:16]} 34. Kg3 {[%emt 0:00:15]} Rxa2 {[%emt 0:01:08]} 35. Rd8+ {[%emt 0:00:15]} Kf7 {[%emt 0:00:05]} 36. Rd7+ {[%emt 0:00:07]} Kg8 {[%emt 0:00:17]} 37. Rb7 {[%emt 0:00:39]} Rb2 {[%emt 0:00:16]} 38. f4 {[%emt 0:01:16]} h6 {[%emt 0:01:59]} 39. h4 {[%emt 0:01:16]} b5 {[%emt 0:01:26]} 40. Kf3 {[%emt 0:01:53]} h5 {[%emt 0:01:56]} 41. g3 {[%emt 0:31:09]} Rb3+ {[%emt 0:30:05]} 42. Ke4 {[%emt 0:01:26]} b4 {[%emt 0:01:02]} 43. Rb5 {[%emt 0:05:14]} Rxg3 {[%emt 0:00:18]} 44. Rxh5 {[%emt 0:00:00]} b3 {[%emt 0:00:00]} 45. Rb5 {[%emt 0:00:00]} Rh3 {[%emt 0:00:00]} 46. Kf5 {[%emt 0:00:00]} Rxh4 {[%emt 0:00:00]} 47. Rxb3 {[%emt 0:00:00]} Rh6 {[%emt 0:00:00]} 48. Kg5 {[%emt 0:00:00]} 1/2-1/2

[Event "Prague Festival Futures 2024"]
[Site "Prague"]
[Date "2024.02.27"]
[Round "1.2"]
[White "Jakubse, Tamae Severina"]
[Black "Stara, Zuzana"]
[Result "1-0"]
[ECO "B14"]
[WhiteElo "1735"]
[BlackElo "1674"]
[Annotator "NA RC"]
[PlyCount "69"]
[EventDate "2024.02.22"]
[EventType "tourn"]
[EventCountry "CZE"]
[SourceTitle "playchess.com"]
[Source "ChessBase"]
[SourceQuality "1"]
[TimeControl "40/5400+30:1800+30"]

1. e4 {[%emt 0:01:04]} c6 {[%emt 0:01:03]} 2. d4 {[%emt 0:00:35]} d5 {[%emt 0:00:33]} 3. exd5 {[%emt 0:00:38]} cxd5 {[%emt 0:00:35]} 4. c4 {[%emt 0:00:37]} Nf6 {[%emt 0:00:40]} 5. Nc3 {[%emt 0:00:38]} g6 {[%emt 0:00:42]} 6. Qb3 {[%emt 0:00:46]} Bg7 {[%emt 0:01:17]} 7. cxd5 {[%emt 0:00:42]} O-O {[%emt 0:03:05]} 8. Be2 {[%emt 0:00:36]} Nbd7 {[%emt 0:01:12]} 9. Nh3 {[%emt 0:00:51]} Nb6 {[%emt 0:02:27]} 10. Nf4 {[%emt 0:00:44]} Bf5 {[%emt 0:03:30]} 11. Bf3 {[%emt 0:01:56]} Qd6 {[%emt 0:09:57]} 12. O-O {[%emt 0:05:56]} Rfd8 {[%emt 0:04:08]} 13. h4 {[%emt 0:23:40]} h5 {[%emt 0:16:03]} 14. a4 {[%emt 0:06:46]} Qd7 {[%emt 0:14:07]} 15. a5 {[%emt 0:09:41]} Nc8 {[%emt 0:00:17]} 16. Na4 {[%emt 0:09:31]} Nd6 {[%emt 0:04:34]} 17. Nc5 {[%emt 0:02:56]} Qc7 {[%emt 0:01:17]} 18. Re1 {[%emt 0:09:31]} b6 {[%emt 0:07:44]} 19. Na4 {[%emt 0:04:05]} Nde4 {[%emt 0:13:55]} 20. axb6 {[%emt 0:03:35]} axb6 {[%emt 0:00:27]} 21. Be3 {[%emt 0:00:47]} Rab8 {[%emt 0:07:49]} 22. Rac1 {[%emt 0:01:33]} Qb7 {[%emt 0:00:59]} 23. Rc6 {[%emt 0:02:18]} Bd7 {[%emt 0:02:40]} 24. Rec1 {[%emt 0:03:59]} Bxc6 {[%emt 0:02:11]} 25. dxc6 {[%emt 0:00:10]} Qc7 {[%emt 0:00:17]} 26. Bxe4 {[%emt 0:00:41]} Nxe4 {[%emt 0:01:08]} 27. Nd5 {[%emt 0:00:21]} Rxd5 {[%emt 0:00:33]} 28. Qxd5 {[%emt 0:00:12]} Nf6 {[%emt 0:00:09]} 29. Qf3 {[%emt 0:02:23]} Rd8 {[%emt 0:00:58]} 30. Bf4 {[%emt 0:00:42]} Qa7 {[%emt 0:00:25]} 31. c7 {[%emt 0:01:06]} Rc8 {[%emt 0:00:07]} 32. Qc6 {[%emt 0:00:54]} Nd5 {[%emt 0:00:52]} 33. Qxd5 {[%emt 0:00:17]} Qxa4 {[%emt 0:00:41]} 34. Qd8+ {[%emt 0:00:10]} Qe8 {[%emt 0:00:28]} 35. Qxe8+ {[%emt 0:00:24]} 1-0

[Event "Prague Festival Futures 2024"]
[Site "Prague"]
[Date "2024.02.27"]
[Round "1.3"]
[White "Andre, Tomas"]
[Black "Brzezina, Pawel"]
[Result "1/2-1/2"]
[ECO "C45"]
[WhiteElo "1829"]
[BlackElo "1834"]
[Annotator "NA RC"]
[PlyCount "85"]
[EventDate "2024.02.22"]
[EventType "tourn"]
[EventCountry "CZE"]
[SourceTitle "playchess.com"]
[Source "ChessBase"]
[SourceQuality "1"]
[TimeControl "40/5400+30:1800+30"]

1. e4 {[%emt 0:00:04]} e5 {[%emt 0:00:44]} 2. Nf3 {[%emt 0:00:09]} Nc6 {[%emt 0:00:47]} 3. d4 {[%emt 0:00:10]} exd4 {[%emt 0:00:55]} 4. Nxd4 {[%emt 0:00:11]} Nf6 {[%emt 0:00:53]} 5. Nxc6 {[%emt 0:00:15]} bxc6 {[%emt 0:00:42]} 6. e5 {[%emt 0:00:11]} Qe7 {[%emt 0:01:05]} 7. Qe2 {[%emt 0:00:11]} Nd5 {[%emt 0:01:17]} 8. c4 {[%emt 0:00:12]} Ba6 {[%emt 0:01:54]} 9. b3 {[%emt 0:00:16]} g6 {[%emt 0:01:50]} 10. Bb2 {[%emt 0:02:17]} Bg7 {[%emt 0:01:54]} 11. Nd2 {[%emt 0:01:22]} O-O {[%emt 0:11:55]} 12. O-O-O {[%emt 0:02:04]} f6 {[%emt 0:03:37]} 13. Qe4 {[%emt 0:05:57]} Nb6 {[%emt 0:07:14]} 14. exf6 {[%emt 0:08:36]} Bxf6 {[%emt 0:00:19]} 15. Qxe7 {[%emt 0:00:13]} Bxe7 {[%emt 0:00:08]} 16. a4 {[%emt 0:05:00]} d6 {[%emt 0:11:36]} 17. Nf3 {[%emt 0:06:18]} c5 {[%emt 0:10:16]} 18. h4 {[%emt 0:02:25]} Bb7 {[%emt 0:09:45]} 19. Bd3 {[%emt 0:01:39]} Bf6 {[%emt 0:05:36]} 20. h5 {[%emt 0:03:33]} Bxb2+ {[%emt 0:00:09]} 21. Kxb2 {[%emt 0:00:09]} Rxf3 {[%emt 0:02:28]} 22. gxf3 {[%emt 0:00:36]} Bxf3 {[%emt 0:00:06]} 23. hxg6 {[%emt 0:00:46]} hxg6 {[%emt 0:00:09]} 24. Bxg6 {[%emt 0:01:13]} Bxd1 {[%emt 0:00:53]} 25. Rxd1 {[%emt 0:00:12]} Rf8 {[%emt 0:00:15]} 26. Rd2 {[%emt 0:03:43]} a5 {[%emt 0:02:23]} 27. Be4 {[%emt 0:01:18]} Rf4 {[%emt 0:03:26]} 28. f3 {[%emt 0:00:15]} Nd7 {[%emt 0:00:56]} 29. Bd5+ {[%emt 0:01:47]} Kf8 {[%emt 0:00:43]} 30. Rh2 {[%emt 0:04:11]} Nf6 {[%emt 0:03:41]} 31. Rh8+ {[%emt 0:00:58]} Kg7 {[%emt 0:00:13]} 32. Rc8 {[%emt 0:00:54]} Nxd5 {[%emt 0:00:49]} 33. cxd5 {[%emt 0:00:02]} Rxf3 {[%emt 0:00:38]} 34. Rxc7+ {[%emt 0:00:16]} Kf6 {[%emt 0:00:15]} 35. Ra7 {[%emt 0:01:40]} Ke5 {[%emt 0:00:13]} 36. Rxa5 {[%emt 0:00:11]} Kxd5 {[%emt 0:00:10]} 37. Ra6 {[%emt 0:01:55]} Rf2+ {[%emt 0:05:05]} 38. Kc3 {[%emt 0:04:23]} Rf3+ {[%emt 0:00:14]} 39. Kc2 {[%emt 0:02:45]} Rf2+ {[%emt 0:01:41]} 40. Kd1 {[%emt 0:02:45]} c4 {[%emt 0:02:55]} 41. bxc4+ {[%emt 0:32:10]} Kxc4 {[%emt 0:30:13]} 42. Rxd6 {[%emt 0:00:10]} Ra2 {[%emt 0:00:13]} 43. Ra6 {[%emt 0:00:45]} 1/2-1/2

[Event "Prague Festival Futures 2024"]
[Site "Prague"]
[Date "2024.02.27"]
[Round "1.4"]
[White "Markina, Sofiia"]
[Black "Mrozowski, Nikodem"]
[Result "1-0"]
[ECO "B54"]
[WhiteElo "1680"]
[BlackElo "1527"]
[Annotator "NA RC"]
[PlyCount "61"]
[EventDate "2024.02.22"]
[EventType "tourn"]
[EventCountry "CZE"]
[SourceTitle "playchess.com"]
[Source "ChessBase"]
[SourceQuality "1"]
[TimeControl "40/5400+30:1800+30"]

1. e4 {[%emt 0:00:03]} c5 {[%emt 0:00:15]} 2. Nf3 {[%emt 0:00:12]} d6 {[%emt 0:00:28]} 3. Bb5+ {[%emt 0:00:19]} Bd7 {[%emt 0:00:38]} 4. c4 {[%emt 0:00:15]} Nc6 {[%emt 0:01:35]} 5. d4 {[%emt 0:00:43]} cxd4 {[%emt 0:00:48]} 6. Nxd4 {[%emt 0:00:10]} Nf6 {[%emt 0:00:46]} 7. Nc3 {[%emt 0:00:29]} g6 {[%emt 0:01:34]} 8. O-O {[%emt 0:02:56]} Rc8 {[%emt 0:00:31]} 9. h3 {[%emt 0:13:47]} Bg7 {[%emt 0:03:15]} 10. Be3 {[%emt 0:04:12]} a6 {[%emt 0:01:14]} 11. Bxc6 {[%emt 0:14:23]} Bxc6 {[%emt 0:02:10]} 12. Nxc6 {[%emt 0:09:49]} Rxc6 {[%emt 0:00:15]} 13. Qb3 {[%emt 0:06:02]} Qc8 {[%emt 0:05:04]} 14. Nd5 {[%emt 0:04:51]} Nxe4 {[%emt 0:04:54]} 15. Rfe1 {[%emt 0:11:37]} e6 {[%emt 0:03:29]} 16. Bd4 {[%emt 0:03:59]} Bxd4 {[%emt 0:07:34]} 17. Rxe4 {[%emt 0:00:06]} e5 {[%emt 0:01:51]} 18. Rxd4 {[%emt 0:05:41]} exd4 {[%emt 0:00:43]} 19. Re1+ {[%emt 0:00:04]} Kf8 {[%emt 0:03:01]} 20. Qd3 {[%emt 0:02:50]} Qd8 {[%emt 0:10:49]} 21. Qxd4 {[%emt 0:00:15]} Rg8 {[%emt 0:00:36]} 22. Nf6 {[%emt 0:00:41]} Rh8 {[%emt 0:01:59]} 23. Re8+ {[%emt 0:00:19]} Qxe8 {[%emt 0:01:58]} 24. Nxe8 {[%emt 0:00:05]} Rg8 {[%emt 0:00:07]} 25. Nf6 {[%emt 0:00:20]} Rg7 {[%emt 0:00:47]} 26. Nd7+ {[%emt 0:00:36]} Kg8 {[%emt 0:00:10]} 27. Qe4 {[%emt 0:00:25]} Rc8 {[%emt 0:00:41]} 28. Qxb7 {[%emt 0:00:08]} Rd8 {[%emt 0:00:16]} 29. Qc7 {[%emt 0:00:07]} Ra8 {[%emt 0:00:15]} 30. Qxd6 {[%emt 0:00:09]} f5 {[%emt 0:00:45]} 31. Qd5+ {[%emt 0:02:34]} 1-0

[Event "Prague Festival Futures 2024"]
[Site "Prague"]
[Date "2024.02.27"]
[Round "1.5"]
[White "Aansh Nandan Nerurkar"]
[Black "Guntaka, Aayansh R"]
[Result "1-0"]
[ECO "B31"]
[WhiteElo "1891"]
[BlackElo "1651"]
[Annotator "NA RC"]
[PlyCount "153"]
[EventDate "2024.02.22"]
[EventType "tourn"]
[EventCountry "CZE"]
[SourceTitle "playchess.com"]
[Source "ChessBase"]
[SourceQuality "1"]
[TimeControl "40/5400+30:1800+30"]

1. e4 {[%emt 0:00:02]} c5 {[%emt 0:00:08]} 2. Nf3 {[%emt 0:00:03]} Nc6 {[%emt 0:00:09]} 3. Bb5 {[%emt 0:00:03]} g6 {[%emt 0:00:24]} 4. O-O {[%emt 0:00:05]} Bg7 {[%emt 0:00:13]} 5. c3 {[%emt 0:00:04]} Nf6 {[%emt 0:00:07]} 6. Re1 {[%emt 0:00:05]} O-O {[%emt 0:00:16]} 7. d4 {[%emt 0:00:03]} d5 {[%emt 0:00:08]} 8. e5 {[%emt 0:00:04]} Ne4 {[%emt 0:00:09]} 9. Be3 {[%emt 0:00:30]} Qb6 {[%emt 0:00:44]} 10. Bxc6 {[%emt 0:00:22]} bxc6 {[%emt 0:00:36]} 11. Qc1 {[%emt 0:00:07]} cxd4 {[%emt 0:00:36]} 12. cxd4 {[%emt 0:00:07]} Bd7 {[%emt 0:01:28]} 13. Nc3 {[%emt 0:00:59]} Nxc3 {[%emt 0:00:10]} 14. Qxc3 {[%emt 0:00:08]} Bg4 {[%emt 0:00:15]} 15. Nd2 {[%emt 0:00:23]} f6 {[%emt 0:05:11]} 16. Bf4 {[%emt 0:01:49]} Rac8 {[%emt 0:20:33]} 17. Nb3 {[%emt 0:03:05]} fxe5 {[%emt 0:24:15]} 18. Bxe5 {[%emt 0:01:51]} Rf7 {[%emt 0:01:11]} 19. f3 {[%emt 0:01:12]} Bf5 {[%emt 0:01:47]} 20. Nc5 {[%emt 0:02:04]} Rcf8 {[%emt 0:03:19]} 21. Bxg7 {[%emt 0:01:55]} Kxg7 {[%emt 0:01:31]} 22. Re5 {[%emt 0:02:35]} Rb8 {[%emt 0:05:48]} 23. b3 {[%emt 0:01:32]} Qb4 {[%emt 0:00:41]} 24. Qe3 {[%emt 0:00:22]} Re8 {[%emt 0:00:23]} 25. Re1 {[%emt 0:04:03]} h5 {[%emt 0:02:12]} 26. h4 {[%emt 0:04:09]} e6 {[%emt 0:02:22]} 27. Kh2 {[%emt 0:08:27]} Qb8 {[%emt 0:02:54]} 28. Qg5 {[%emt 0:05:09]} Qd6 {[%emt 0:02:18]} 29. Kg1 {[%emt 0:02:54]} Kh7 {[%emt 0:03:46]} 30. R1e2 {[%emt 0:02:18]} Ree7 {[%emt 0:02:16]} 31. Re1 {[%emt 0:08:59]} Re8 {[%emt 0:00:26]} 32. Rf1 {[%emt 0:01:55]} Qe7 {[%emt 0:02:16]} 33. g4 {[%emt 0:02:15]} hxg4 {[%emt 0:04:51]} 34. fxg4 {[%emt 0:00:09]} Be4 {[%emt 0:00:13]} 35. Qxe7 {[%emt 0:00:30]} Rfxe7 {[%emt 0:00:17]} 36. Nxe4 {[%emt 0:00:09]} dxe4 {[%emt 0:00:08]} 37. Rxe4 {[%emt 0:00:04]} Kg7 {[%emt 0:00:40]} 38. Rc1 {[%emt 0:00:45]} Rc8 {[%emt 0:00:58]} 39. Kf2 {[%emt 0:00:28]} Kf6 {[%emt 0:01:15]} 40. Ke3 {[%emt 0:00:07]} Rh7 {[%emt 0:00:47]} 41. g5+ {[%emt 0:30:05]} Ke7 {[%emt 0:31:03]} 42. d5 {[%emt 0:00:06]} Kd6 {[%emt 0:00:34]} 43. dxe6 {[%emt 0:00:06]} Re7 {[%emt 0:00:09]} 44. Rd1+ {[%emt 0:00:07]} Kc7 {[%emt 0:00:06]} 45. Rf1 {[%emt 0:00:03]} Kd6 {[%emt 0:00:32]} 46. Rf7 {[%emt 0:00:11]} Rxe6 {[%emt 0:01:09]} 47. Rxe6+ {[%emt 0:00:05]} Kxe6 {[%emt 0:00:05]} 48. Rf6+ {[%emt 0:00:04]} Ke5 {[%emt 0:00:13]} 49. Rxg6 {[%emt 0:00:04]} Kf5 {[%emt 0:00:19]} 50. Rg7 {[%emt 0:00:26]} Re8+ {[%emt 0:00:29]} 51. Kd4 {[%emt 0:00:43]} Re2 {[%emt 0:00:10]} 52. Rxa7 {[%emt 0:00:06]} Rh2 {[%emt 0:00:14]} 53. Kc5 {[%emt 0:00:11]} Rxh4 {[%emt 0:00:11]} 54. Kxc6 {[%emt 0:00:15]} Kxg5 {[%emt 0:00:12]} 55. Kc5 {[%emt 0:00:00]} Kf6 {[%emt 0:00:14]} 56. b4 {[%emt 0:00:00]} Ke6 {[%emt 0:00:08]} 57. b5 {[%emt 0:00:02]} Rh5+ {[%emt 0:00:08]} 58. Kc6 {[%emt 0:00:05]} Rh2 {[%emt 0:00:39]} 59. a4 {[%emt 0:00:04]} Rc2+ {[%emt 0:00:26]} 60. Kb6 {[%emt 0:00:03]} Kd6 {[%emt 0:00:18]} 61. a5 {[%emt 0:00:05]} Rc8 {[%emt 0:01:01]} 62. Rb7 {[%emt 0:01:04]} Ra8 {[%emt 0:01:59]} 63. a6 {[%emt 0:00:00]} Kd5 {[%emt 0:00:40]} 64. a7 {[%emt 0:00:00]} Kc4 {[%emt 0:00:05]} 65. Rb8 {[%emt 0:00:00]} Rxa7 {[%emt 0:00:13]} 66. Kxa7 {[%emt 0:00:00]} Kc5 {[%emt 0:00:04]} 67. b6 {[%emt 0:00:00]} Kc6 {[%emt 0:00:08]} 68. Rc8+ {[%emt 0:00:00]} Kd7 {[%emt 0:00:06]} 69. b7 {[%emt 0:00:03]} Kd6 {[%emt 0:00:09]} 70. b8=Q+ {[%emt 0:00:05]} Kd5 {[%emt 0:00:08]} 71. Qc7 {[%emt 0:00:04]} Kd4 {[%emt 0:00:15]} 72. Rd8+ {[%emt 0:00:03]} Ke4 {[%emt 0:00:00]} 73. Qe7+ {[%emt 0:00:00]} Kf5 {[%emt 0:00:00]} 74. Rf8+ {[%emt 0:00:00]} Kg6 {[%emt 0:00:20]} 75. Qf6+ {[%emt 0:00:00]} Kh5 {[%emt 0:00:11]} 76. Qg7 {[%emt 0:00:00]} Kh4 {[%emt 0:00:26]} 77. Rh8# {[%emt 0:00:00]} 1-0

[Event "Prague Festival Futures 2024"]
[Site "Prague"]
[Date "2024.02.28"]
[Round "2.1"]
[White "Siskou, Evangelia"]
[Black "Guntaka, Aayansh R"]
[Result "1-0"]
[ECO "C15"]
[WhiteElo "1680"]
[BlackElo "1651"]
[Annotator "NA RC"]
[PlyCount "101"]
[EventDate "2024.02.22"]
[EventType "tourn"]
[EventCountry "CZE"]
[SourceTitle "playchess.com"]
[Source "ChessBase"]
[SourceQuality "1"]
[TimeControl "40/5400+30:1800+30"]

1. e4 {[%emt 0:00:15]} e6 {[%emt 0:00:10]} 2. d4 {[%emt 0:00:27]} d5 {[%emt 0:00:06]} 3. Nc3 {[%emt 0:00:18]} Bb4 {[%emt 0:00:06]} 4. Nge2 {[%emt 0:00:17]} dxe4 {[%emt 0:00:22]} 5. a3 {[%emt 0:00:26]} Bxc3+ {[%emt 0:00:15]} 6. Nxc3 {[%emt 0:00:22]} Nc6 {[%emt 0:00:10]} 7. d5 {[%emt 0:00:27]} exd5 {[%emt 0:00:05]} 8. Qxd5 {[%emt 0:00:26]} Be6 {[%emt 0:00:11]} 9. Qxd8+ {[%emt 0:00:24]} Rxd8 {[%emt 0:00:33]} 10. Bf4 {[%emt 0:00:21]} f5 {[%emt 0:02:28]} 11. Bxc7 {[%emt 0:03:16]} Rd7 {[%emt 0:00:23]} 12. Bf4 {[%emt 0:00:35]} Nf6 {[%emt 0:00:50]} 13. Rd1 {[%emt 0:05:45]} Rxd1+ {[%emt 0:04:54]} 14. Kxd1 {[%emt 0:00:38]} O-O {[%emt 0:00:55]} 15. Be2 {[%emt 0:07:26]} h6 {[%emt 0:02:11]} 16. h4 {[%emt 0:01:38]} Ne7 {[%emt 0:02:15]} 17. Kc1 {[%emt 0:03:43]} Ned5 {[%emt 0:02:50]} 18. Be5 {[%emt 0:02:12]} Nxc3 {[%emt 0:01:16]} 19. Bxc3 {[%emt 0:00:08]} Nd5 {[%emt 0:01:00]} 20. Bc4 {[%emt 0:04:18]} Nc7 {[%emt 0:23:34]} 21. Bxe6+ {[%emt 0:11:15]} Nxe6 {[%emt 0:00:15]} 22. Rd1 {[%emt 0:00:43]} Rf7 {[%emt 0:03:45]} 23. g3 {[%emt 0:02:11]} f4 {[%emt 0:01:26]} 24. Re1 {[%emt 0:02:39]} e3 {[%emt 0:01:24]} 25. fxe3 {[%emt 0:10:35]} f3 {[%emt 0:03:28]} 26. Bb4 {[%emt 0:17:47]} g5 {[%emt 0:04:08]} 27. hxg5 {[%emt 0:02:33]} Nxg5 {[%emt 0:01:29]} 28. Bd6 {[%emt 0:00:19]} Ne4 {[%emt 0:01:36]} 29. Bf4 {[%emt 0:00:16]} f2 {[%emt 0:15:47]} 30. Rf1 {[%emt 0:01:08]} h5 {[%emt 0:00:06]} 31. Kd1 {[%emt 0:01:58]} Kg7 {[%emt 0:00:11]} 32. Ke2 {[%emt 0:01:10]} Rd7 {[%emt 0:01:43]} 33. c3 {[%emt 0:03:46]} Kg6 {[%emt 0:00:36]} 34. Rh1 {[%emt 0:03:29]} Rh7 {[%emt 0:03:20]} 35. Rd1 {[%emt 0:04:36]} Re7 {[%emt 0:09:32]} 36. Rd5 {[%emt 0:03:18]} Rh7 {[%emt 0:02:30]} 37. Re5 {[%emt 0:00:47]} Nf6 {[%emt 0:00:27]} 38. Rg5+ {[%emt 0:00:38]} Kf7 {[%emt 0:00:22]} 39. Rb5 {[%emt 0:00:20]} Ne4 {[%emt 0:08:59]} 40. Rxb7+ {[%emt 0:00:46]} Kg6 {[%emt 0:00:11]} 41. Rb4 {[%emt 0:31:47]} Kf5 {[%emt 0:02:06]} 42. Rb5+ {[%emt 0:00:32]} Kg4 {[%emt 0:28:46]} 43. Re5 {[%emt 0:05:17]} Rd7 {[%emt 0:00:21]} 44. Rxe4 {[%emt 0:00:47]} Rd2+ {[%emt 0:00:06]} 45. Kf1 {[%emt 0:00:28]} Kf3 {[%emt 0:01:02]} 46. Rd4 {[%emt 0:00:01]} Rxb2 {[%emt 0:00:35]} 47. Rd1 {[%emt 0:01:21]} h4 {[%emt 0:01:29]} 48. gxh4 {[%emt 0:00:00]} Rb6 {[%emt 0:01:06]} 49. Bg5 {[%emt 0:00:12]} Rg6 {[%emt 0:02:04]} 50. Rd2 {[%emt 0:00:24]} Rb6 51. Rc2 {[%emt 0:00:30]} 1-0

[Event "Prague Festival Futures 2024"]
[Site "Prague"]
[Date "2024.02.28"]
[Round "2.2"]
[White "Mrozowski, Nikodem"]
[Black "Aansh Nandan Nerurkar"]
[Result "0-1"]
[ECO "B76"]
[WhiteElo "1527"]
[BlackElo "1891"]
[Annotator "NA RC"]
[PlyCount "60"]
[EventDate "2024.02.22"]
[EventType "tourn"]
[EventCountry "CZE"]
[SourceTitle "playchess.com"]
[Source "ChessBase"]
[SourceQuality "1"]
[TimeControl "40/5400+30:1800+30"]

1. e4 {[%emt 0:00:13]} c5 {[%emt 0:00:04]} 2. Nf3 {[%emt 0:00:29]} d6 {[%emt 0:00:05]} 3. d4 {[%emt 0:00:08]} cxd4 {[%emt 0:00:04]} 4. Nxd4 {[%emt 0:00:12]} Nf6 {[%emt 0:00:06]} 5. Nc3 {[%emt 0:00:25]} g6 {[%emt 0:00:05]} 6. Be3 {[%emt 0:00:25]} Bg7 {[%emt 0:00:05]} 7. f3 {[%emt 0:00:26]} O-O {[%emt 0:00:05]} 8. Qd2 {[%emt 0:00:20]} Nc6 {[%emt 0:00:06]} 9. O-O-O {[%emt 0:00:29]} Nxd4 {[%emt 0:00:09]} 10. Bxd4 {[%emt 0:00:18]} Be6 {[%emt 0:00:07]} 11. Kb1 {[%emt 0:00:44]} Qc7 {[%emt 0:00:06]} 12. h4 {[%emt 0:00:58]} Rfc8 {[%emt 0:00:08]} 13. h5 {[%emt 0:00:54]} Qa5 {[%emt 0:00:07]} 14. hxg6 {[%emt 0:00:41]} fxg6 {[%emt 0:00:08]} 15. a3 {[%emt 0:01:14]} Bf7 {[%emt 0:00:36]} 16. Bd3 {[%emt 0:04:20]} Rab8 {[%emt 0:02:52]} 17. g4 {[%emt 0:08:43]} b5 {[%emt 0:01:08]} 18. e5 {[%emt 0:03:14]} dxe5 {[%emt 0:02:59]} 19. Bxe5 {[%emt 0:00:54]} b4 {[%emt 0:01:02]} 20. Bxb8 {[%emt 0:03:17]} bxc3 {[%emt 0:00:11]} 21. Qh2 {[%emt 0:00:09]} Qb6 {[%emt 0:00:43]} 22. b4 {[%emt 0:04:30]} Qe6 {[%emt 0:00:57]} 23. Bc4 {[%emt 0:12:36]} Qxc4 {[%emt 0:00:06]} 24. Rd5 {[%emt 0:00:25]} Bxd5 {[%emt 0:00:07]} 25. Kc1 {[%emt 0:00:05]} Qa2 {[%emt 0:00:05]} 26. Kd1 {[%emt 0:00:18]} Qb1+ {[%emt 0:00:03]} 27. Ke2 {[%emt 0:00:17]} Qxc2+ {[%emt 0:00:05]} 28. Ke3 {[%emt 0:00:17]} Nxg4+ {[%emt 0:00:07]} 29. fxg4 {[%emt 0:00:12]} Qe4+ {[%emt 0:00:05]} 30. Kf2 {[%emt 0:00:08]} Rf8+ {[%emt 0:00:03]} 0-1